Cogmind - Beta 11.1 @@@ ROGUE MODE // 2022.05.02 @ 07:56:20 Player: Haldron Result: Destroyed by P-80 Master with Gamma Rifle Performance ------------- Evolutions (8) 4000 Regions Visited (11) 2200 Robots Destroyed (143) 715 Value Destroyed (3631) 3631 Prototype IDs (18) 360 Alien Tech Used (0) 0 Bonus (1750) 1750 TOTAL SCORE: 12656 Bonus ------- High Alert Combat Kills 261 Follower Combat Kills 989 Scanned by Researcher 500 Cogmind --------- Core Integrity 0/1450 Matter 243/300 Energy 48/100 System Corruption 5% Temperature Cool (0) Movement Core (50) Location -2/Research Parts ------- > --- POWER (2) -------- (None) > --- PROPULSION (6) --- (None) > --- UTILITY (13) ----- Hacking Suite > --- WEAPON (2) ------- (None) > --- INVENTORY (5) ---- Long-range Sensor Array Improved Trap Extractor (0/6) Helical Railgun Advanced Datajack Peak State ------------ > --- POWER ------------ Light Antimatter Reactor Zero-point Reactor > --- PROPULSION ------- Impulse Thruster Array Impulse Thruster Array Impulse Thruster Array > --- UTILITY ---------- Large Storage Unit Advanced Energy Well Advanced Weight Redist. System Machine Analyzer Visual Processing Unit Advanced Sensor Array Advanced Signal Interpreter Advanced Transmission Jammer Experimental Hardlight Generator Hacking Suite Advanced System Shield > --- WEAPON ----------- Advanced Datajack Scythe > --- INVENTORY -------- Light Antimatter Reactor Cooled VTOL Module Impulse Thruster Experimental Coolant Injector Medium Storage Unit Improved Sensor Array Advanced Terrain Scanner Phase Shifter Cloaking Device Advanced Focal Shield Improved Trap Extractor Advanced Trap Extractor Helical Railgun Mini Grenade Launcher Force Lance [Rating: 136] Favorites ----------- Power Deuterium Engine Engine Deuterium Engine Power Core Light Nuclear Core Reactor Light Antimatter Reactor Propulsion Cooled VTOL Module Treads Light Treads Leg Aluminum Leg Wheel Compact Wheel Hover Unit Improved Linear Gravjet Flight Unit Cooled VTOL Module Utility Hacking Suite Device Seismic Detector Storage High-capacity Storage Unit Processor Visual Processing Unit Hackware Hacking Suite Protection Hardened Medium Armor Plating Weapon Katana Energy Gun Heavy EM Pulse Gun Ballistic Gun Heavy Assault Rifle Launcher Mini Grenade Launcher Impact Weapon Heavy Mace Slashing Weapon Katana Piercing Weapon Force Lance Special Melee Weapon Improved Datajack Build | -11 -10 -9 -8 -8 -7 -6 -5 -4 -3 -3 -2 ------- Run | Scr Mat Mat Mat Sto Fac Fac Fac Fac Res Tes Res Slots Evolved 16 | . . 2 2 . 2 2 2 2 2 . 2 Power 1 | . . . . . . 1 . . . . . Propulsion 4 | . . . . . 2 . . 1 1 . . Utility 11 | . . 2 2 . . 1 2 1 1 . 2 Weapon . | . . . . . . . . . . . . Parts Attached 227 | 7 8 9 43 17 30 22 4 21 11 33 22 Power 26 | 1 1 2 3 1 2 2 . 4 3 4 3 Engine 16 | 1 1 2 3 . 2 2 . 3 2 . . Core 2 | . . . . 1 . . . 1 . . . Reactor 8 | . . . . . . . . . 1 4 3 Propulsion 37 | 2 1 2 10 2 5 3 1 4 2 2 3 Treads 9 | 1 . 2 5 1 . . . . . . . Leg 1 | . . . 1 . . . . . . . . Wheel 6 | 1 1 . 4 . . . . . . . . Hover 1 | . . . . . . . . . . . 1 Flight 20 | . . . . 1 5 3 1 4 2 2 2 Utility 105 | 2 3 3 7 8 17 16 3 8 4 20 14 Device 76 | 1 2 . 2 5 13 15 1 6 3 16 12 Storage 11 | 1 1 . . . 1 . . 2 1 4 1 Processor 8 | . . 2 1 . 1 1 2 . . . 1 Hackware 5 | . . . 1 2 2 . . . . . . Protection 5 | . . 1 3 1 . . . . . . . Artifact . | . . . . . . . . . . . . Weapon 59 | 2 3 2 23 6 6 1 . 5 2 7 2 Energy Gun 10 | . . . 10 . . . . . . . . Energy Cannon . | . . . . . . . . . . . . Ballistic Gun 8 | 2 3 2 . . . . . . . 1 . Ballistic Cannon . | . . . . . . . . . . . . Launcher 6 | . . . . 2 1 . . . . 3 . Special Weapon . | . . . . . . . . . . . . Impact Weapon 2 | . . . 2 . . . . . . . . Slashing Weapon 21 | . . . 11 4 3 1 . 2 . . . Piercing Weapon 5 | . . . . . . . . 1 1 1 2 Special Melee Weapon 7 | . . . . . 2 . . 2 1 2 . Unidentified Prototypes 12 | . . . . 1 . . . . . 9 2 Parts Lost 50 | . 1 1 8 2 4 1 . 7 . 4 22 Power 10 | . . 1 . 1 1 1 . 2 . 2 2 Propulsion 14 | . 1 . 4 . . . . 3 . . 6 Utility 20 | . . . 1 1 3 . . 2 . 2 11 Weapon 6 | . . . 3 . . . . . . . 3 Highest Loss Streak 11 | . 1 1 3 1 4 1 . 3 . 3 11 To Critical Strikes 1 | . . . . . . . . . . . 1 Average Slot Usage (%) 94 | . 99 99 98 99 99 90 93 86 90 85 79 Engine 6 | . 14 10 9 6 3 7 11 7 4 . . Treads 5 | . 14 11 9 6 . . . . . . . Wheel 5 | . 14 11 8 9 . . . . . . . Flight 9 | . . . . 2 29 23 16 17 19 15 13 Device 15 | . 13 11 17 13 11 13 17 17 23 18 22 Storage 8 | . 14 11 9 9 7 6 5 6 4 9 7 Processor 10 | . . 11 9 9 10 12 17 15 14 14 13 Hackware 9 | . . . 8 16 14 13 11 10 9 9 8 Protection 3 | . . 11 8 5 . . . . . . . Ballistic Gun 4 | . 28 22 . . . . . . . . . Slashing Weapon 8 | . . . 12 17 9 5 5 5 4 4 3 Special Melee Weapon 1 | . . . . . 2 6 5 4 3 3 . Naked Turns . | . . . . . . . . . . . . Heaviest Build 65 | 13 52 61 65 63 50 25 25 34 57 65 49 Greatest Support 57 | 20 16 20 42 25 29 29 28 42 55 57 56 Greatest Overweight (x) 6 | . 3 3 6 3 1 1 . 1 1 1 2 Average Overweight (x) . | . 2 2 4 2 . . . . . . . Largest Inventory Capacity 20 | 8 20 20 20 20 20 10 10 10 15 15 15 Average Capacity 16 | 7 19 20 20 20 10 10 10 10 13 15 12 Most Carried 20 | 5 20 20 20 20 20 10 10 10 14 15 15 Average Carried 15 | 2 16 19 19 19 9 9 9 9 11 14 12 Final Capacity 20 | 8 20 20 20 20 10 10 10 10 15 15 5 Final Carried 20 | 5 20 20 20 20 10 10 10 9 14 15 4 Class Distribution -------------------- 34% | Mutant 19% | Hacker-Ninja 12% | Hacker-Mutant 9% | Scavenger-Mutant 7% | Hacker-Scout 5% | Scavenger-Scout 4% | Hacker-Assassin 3% | Hacker-Sprinter Dominant Class ---------------- Mutant | -10/Materials Mutant | -9/Materials Mutant | -8/Materials Hacker-Mutant | -8/Storage Scavenger-Scout | -7/Factory Hacker-Scout | -6/Factory Hacker-Ninja | -5/Factory Hacker-Ninja | -4/Factory Hacker-Ninja | -3/Research Hacker-Ninja | -3/Testing Hacker-Ninja | -2/Research Resources | -11 -10 -9 -8 -8 -7 -6 -5 -4 -3 -3 -2 ----------- Run | Scr Mat Mat Mat Sto Fac Fac Fac Fac Res Tes Res Matter Collected 3524 | 288 465 486 491 233 343 67 . 365 130 410 246 Remotely . | . . . . . . . . . . . . Salvage Created 5680 | 76 502 798 1894 812 179 67 . 715 216 400 21 Parts 309 | 5 46 49 86 41 19 5 . 24 7 27 . Haulers Intercepted 16 | . 2 . 5 5 . . . 3 1 . . Recyclers Shooed 9 | . . 4 2 1 . . . 1 . 1 . Parts Field Recycled . | . . . . . . . . . . . . Retrieved Matter . | . . . . . . . . . . . . Parts Self-Destructed . | . . . . . . . . . . . . Prevented . | . . . . . . . . . . . . Kills | -11 -10 -9 -8 -8 -7 -6 -5 -4 -3 -3 -2 ------- Run | Scr Mat Mat Mat Sto Fac Fac Fac Fac Res Tes Res Combat Hostiles Destroyed 70 | . 11 15 20 14 4 1 . 1 . 4 . Melee 11 | . . . 6 2 . 1 . 1 . 1 . Guns 36 | . 11 15 10 . . . . . . . . AOE 21 | . . . 2 12 4 . . . . 3 . Classes Destroyed 17 | 2 6 2 1 3 1 1 . . . 1 . Worker 10 | . 1 1 3 1 . 1 . 2 . . 1 Builder 10 | . 2 . 2 1 . . . 2 . 3 . Tunneler 2 | 1 . . 1 . . . . . . . . Hauler 16 | . 2 . 5 5 . . . 3 1 . . Recycler 14 | 1 . 2 5 1 1 . . 2 1 1 . Mechanic 3 | . . . . 3 . . . . . . . Operator 4 | . . 1 . 2 1 . . . . . . Watcher 12 | . 3 2 3 . 2 . . 1 . 1 . Swarmer 13 | . 6 4 2 . . . . 1 . . . Cutter 4 | . . . . . 4 . . . . . . Grunt 32 | . 5 7 11 9 . . . . . . . Brawler 2 | . . . . 2 . . . . . . . Duelist 2 | . . . . 2 . . . . . . . Researcher 2 | . . . . . . . . . . 2 . Sentry 11 | . . 4 6 1 . . . . . . . Hunter 2 | . . . 1 . . . . . . 1 . Programmer 4 | . . . . . . 1 . . . 3 . Best Kill Streak 17 | 2 7 4 3 17 5 1 . 6 2 3 1 Combat Bots Only 10 | . 3 4 3 10 4 1 . 1 . 3 . Max Kills in Single Turn 5 | 1 1 2 1 5 2 1 . 1 1 1 1 Gunslinging . | . . . . . . . . . . . . Exploded 4 | . . . 1 4 2 . . . . 1 . Melee 1 | . . . 1 1 . 1 . 1 . 1 . Uniques/NPCs Destroyed . | . . . . . . . . . . . . Combat | -11 -10 -9 -8 -8 -7 -6 -5 -4 -3 -3 -2 -------- Run | Scr Mat Mat Mat Sto Fac Fac Fac Fac Res Tes Res Damage Taken 7824 | . 227 622 1310 505 401 62 . 895 . 1244 2558 Core 2629 | . 39 75 164 66 157 44 . 324 . 298 1462 Absorbed by Shields . | . . . . . . . . . . . . Regen/Repaired (Parts) 265 | . 14 . 4 50 . 69 13 115 . . . Core Remaining (%) 82 | 100 84 81 . 58 77 94 100 71 . 77 . Volleys Fired 176 | 3 36 47 61 11 4 . . . . 11 3 Largest 2 | 2 2 2 2 1 1 . . . . 1 1 Hottest 90 | 40 46 46 90 30 30 . . . . 52 30 Shots Fired 319 | 6 72 94 118 11 4 . . . . 11 3 Gun 290 | 6 72 94 118 . . . . . . . . Cannon . | . . . . . . . . . . . . Launcher 29 | . . . . 11 4 . . . . 11 3 Special . | . . . . . . . . . . . . Kinetic 200 | 6 72 94 28 . . . . . . . . Thermal . | . . . . . . . . . . . . Explosive 29 | . . . . 11 4 . . . . 11 3 Electromagnetic 90 | . . . 90 . . . . . . . . Robot Hit Streak 17 | 3 7 17 11 . . . . . . 5 . Robot Miss Streak 6 | 1 6 3 4 . . . . . . 1 1 Penetration Max . | . . . . . . . . . . . . Secondary Targets 7 | . 1 4 2 . . . . . . . . Max Gunslinging Chain 1 | . 1 1 1 . . . . . . . . Shots Hit Robots 343 | 4 40 62 135 20 5 6 . 30 7 31 3 Core Hits 207 | 2 23 31 51 54 8 2 . 11 1 22 2 Critical Kills 1 | 1 . . . . . . . . . . . Critical Parts Destroyed . | . . . . . . . . . . . . Critical Strikes 15 | 1 . . 6 1 . . . 1 1 5 . Destroy 1 | 1 . . . . . . . . . . . Corrupt 4 | . . . 4 . . . . . . . . Sever 10 | . . . 2 1 . . . 1 1 5 . Melee Attacks 396 | . . . 88 45 53 19 2 61 16 70 42 Impact 5 | . . . 5 . . . . . . . . Slashing 367 | . . . 83 45 53 15 2 49 15 69 36 Piercing 10 | . . . . . . . . 3 1 . 6 Sneak Attacks 60 | . . . 15 9 2 5 . 19 2 7 1 Combat Hostiles 1 | . . . . . . . . . . 1 . Follow-up Attacks 10 | . . . 6 4 . . . . . . . Damage Inflicted 12329 | 49 569 980 3389 2766 573 98 . 1054 308 2384 159 Guns 2846 | 49 569 980 1248 . . . . . . . . Cannons . | . . . . . . . . . . . . Explosions 3477 | . . . 265 2006 310 . . . . 878 18 Melee 5996 | . . . 1866 760 263 98 . 1054 308 1506 141 Ramming 10 | . . . 10 . . . . . . . . Kinetic 1834 | 49 569 980 236 . . . . . . . . Thermal 265 | . . . 265 . . . . . . . . Explosive 3212 | . . . . 2006 310 . . . . 878 18 Electromagnetic 1012 | . . . 1012 . . . . . . . . Impact 182 | . . . 182 . . . . . . . . Slashing 5814 | . . . 1684 760 263 98 . 1054 308 1506 141 Piercing . | . . . . . . . . . . . . Highest Corruption 6 | . . . . . 1 . . . . 6 5 Average Corruption 4 | . . . . . 1 . . . . 5 1 Corruption Purged . | . . . . . . . . . . . . Corruption Blocked 4 | . . . . . . . . . . . 4 Effects 13 | . . . . . 1 . . . . 11 1 Message Errors 3 | . . . . . . . . . . 3 . Matter Fused 5 | . . . . . . . . . . 5 . Heat Flow Errors 1 | . . . . . . . . . . 1 . Energy Discharges 1 | . . . . . . . . . . . 1 Data Loss (minor) 1 | . . . . . . . . . . 1 . Alerts 2 | . . . . . 1 . . . . 1 . Overload Shots . | . . . . . . . . . . . . Overflow Damage 832 | . . . 252 120 15 . . 90 82 228 45 Projectiles . | . . . . . . . . . . . . Explosions 197 | . . . 5 46 15 . . . . 111 20 Melee 635 | . . . 247 74 . . . 90 82 117 25 Knockbacks . | . . . . . . . . . . . . Impact . | . . . . . . . . . . . . Kinetic . | . . . . . . . . . . . . Secondary . | . . . . . . . . . . . . Self-Inflicted Damage 219 | . . . 66 . 103 . . . . 2 48 Shots 5 | . . . 1 . 2 . . . . 1 1 Rammed 1 | . . . 1 . . . . . . . . Targets Rammed 1 | . . . 1 . . . . . . . . Kicked . | . . . . . . . . . . . . Crushed . | . . . . . . . . . . . . Highest Temperature 161 | 6 1 32 46 20 . . . . . 161 . Average Temperature 25 | 6 1 10 14 13 . . . . . 62 . Received Heat Transfer 1078 | . 66 231 495 126 . 9 . 21 . 85 45 Siege Activations . | . . . . . . . . . . . . Robots Corrupted 1 | . . . 1 . . . . . . . . Combat Hostiles 1 | . . . 1 . . . . . . . . Parts Fried 11 | . . . 9 . . . . . . 2 . Impact Corruptions 1 | . . . 1 . . . . . . . . Robots Melted . | . . . . . . . . . . . . Combat Hostiles . | . . . . . . . . . . . . Parts Melted . | . . . . . . . . . . . . Heat Transferred 250 | . . . 250 . . . . . . . . Parts Sabotaged . | . . . . . . . . . . . . Parts Stolen . | . . . . . . . . . . . . Parts Stripped . | . . . . . . . . . . . . Power Chain Reactions 4 | . . . 4 . . . . . . . . Missiles Intercepted . | . . . . . . . . . . . . Alert | -11 -10 -9 -8 -8 -7 -6 -5 -4 -3 -3 -2 ------- Run | Scr Mat Mat Mat Sto Fac Fac Fac Fac Res Tes Res Peak Influence 969 | 10 148 329 459 969 667 315 7 211 207 532 452 Initial 375 | . 6 3 138 121 375 219 . 2 110 116 141 Average 284 | 6 74 162 241 694 407 186 2 136 151 276 281 Maximum Alert Level 3 | . . 1 2 3 2 1 . 1 1 2 2 Low Security (%) 36 | 100 100 63 19 7 . 52 100 88 82 18 17 Level 1 45 | . . 36 75 2 60 47 . 11 17 71 72 Level 2 11 | . . . 4 34 39 . . . . 10 10 Level 3 7 | . . . . 55 . . . . . . . Level 4 . | . . . . . . . . . . . . Level 5 . | . . . . . . . . . . . . High Security . | . . . . . . . . . . . . Max Security . | . . . . . . . . . . . . Squads Dispatched 37 | . 3 2 4 11 3 1 1 1 . 3 8 Investigation 11 | . 3 1 2 2 . . . . . 1 2 Extermination 6 | . . . . . 1 1 1 1 . 1 1 Reinforcement 15 | . . 1 2 4 2 . . . . 1 5 Assault 3 | . . . . 3 . . . . . . . Garrison 2 | . . . . 2 . . . . . . . Intercept . | . . . . . . . . . . . . Searches Triggered 1 | . . . . . 1 . . . . . . Construction Impeded 2 | . . . 1 1 . . . . . . . Haulers Reinforced . | . . . . . . . . . . . . Active Scanning Responses . | . . . . . . . . . . . . Cargo Convoy Interrupts . | . . . . . . . . . . . . Stealth | -11 -10 -9 -8 -8 -7 -6 -5 -4 -3 -3 -2 --------- Run | Scr Mat Mat Mat Sto Fac Fac Fac Fac Res Tes Res Distress Signals 17 | . 1 . 3 5 1 . . 4 . 1 2 Communications Jammed 88 | . . . . . . . . . . 62 26 Distress Signals 59 | . . . . . . . . . . 43 16 Times Spotted 263 | . 17 20 38 58 24 4 . 20 3 36 43 Peak Tracking Total 19 | . 4 5 4 11 7 3 1 12 2 14 19 Tactical Retreats 31 | . . 2 2 4 5 2 . 5 1 3 7 Traps | -11 -10 -9 -8 -8 -7 -6 -5 -4 -3 -3 -2 ------- Run | Scr Mat Mat Mat Sto Fac Fac Fac Fac Res Tes Res Traps Triggered 9 | . 1 1 . 2 . 3 . 1 . . 1 Indirectly . | . . . . . . . . . . . . Trap Hack Attempts 81 | . . . . . 14 67 . . . . . Triggered . | . . . . . . . . . . . . Disarmed 1 | . . . . . . 1 . . . . . Reprogrammed 14 | . . . . . 2 8 . . . 4 . Reused 10 | . . . . . 1 2 . . . 7 . Traps Extracted 11 | . . . . . . 8 . . . 3 . Installed 10 | . . . . . . 2 . . . 8 . Triggered 10 | . . . . . 1 2 . . . 7 . Most Traps Carried 6 | . . . . . . 6 6 6 5 5 . Machines | -11 -10 -9 -8 -8 -7 -6 -5 -4 -3 -3 -2 ---------- Run | Scr Mat Mat Mat Sto Fac Fac Fac Fac Res Tes Res Machines Disabled 16 | . 1 1 3 2 3 . . 1 . 5 . Max in Single Turn 1 | . 1 1 1 1 1 . . 1 . 1 . Garrison Access 3 | . . . 1 1 1 . . . . . . Machines Sabotaged . | . . . . . . . . . . . . Garrisons Compromised 1 | . . . . . 1 . . . . . . Overloaded Fab Kills . | . . . . . . . . . . . . Hacking | -11 -10 -9 -8 -8 -7 -6 -5 -4 -3 -3 -2 --------- Run | Scr Mat Mat Mat Sto Fac Fac Fac Fac Res Tes Res Machines Accessed 65 | . 5 2 11 10 10 4 4 8 1 6 4 Terminals 38 | . 3 2 8 7 6 1 1 4 . 4 2 Fabricators 6 | . . . . . 2 1 1 . . 1 1 Repair Stations 10 | . 1 . 1 2 . 1 1 1 1 1 1 Recycling Units 3 | . 1 . . . . . 1 1 . . . Scanalyzers 4 | . . . 1 . 1 1 . 1 . . . Garrison Access 4 | . . . 1 1 1 . . 1 . . . Total Hacks 221 | . 17 6 35 31 35 17 15 35 3 17 10 Successful 126 | . 9 1 20 19 14 14 11 22 . 11 5 Failed 93 | . 7 5 15 11 21 3 4 13 3 6 5 Catastrophic 12 | . 1 1 3 1 2 . . 1 . 2 1 Database Lockouts 2 | . 1 . . 1 . . . . . . . Manual 93 | . 6 4 23 16 22 5 6 6 . 5 . Terminals 128 | . 14 6 25 21 21 7 6 11 . 11 6 Fabricators 10 | . . . . . 2 2 2 . . 2 2 Repair Stations 35 | . 2 . 2 7 . 4 4 7 3 4 2 Recycling Units 6 | . 1 . . . . . 3 2 . . . Scanalyzers 29 | . . . 6 . 7 4 . 12 . . . Garrison Access 13 | . . . 2 3 5 . . 3 . . . Terminal Hacks 36 | . 5 1 5 7 . 4 2 4 . 6 2 Record 2 | . 2 . . . . . . . . . . Part Schematic 4 | . 1 . . 1 . 1 . 1 . . . Open Door 1 | . . . . 1 . . . . . . . Branch Access Points 2 | . 1 . . 1 . . . . . . . Emergency Access Points 1 | . . . . . . . . . . 1 . Terminal Index 7 | . . 1 1 1 . 1 1 1 . 1 . Fabricator Index 1 | . . . . . . . . 1 . . . Unreport Threat 6 | . 1 . 1 2 . . . . . 2 . Locate Traps 6 | . . . 2 . . 1 . 1 . 1 1 Reprogram Traps 1 | . . . . . . . . . . 1 . Recall Reinforcements 1 | . . . 1 . . . . . . . . Zone Layout 4 | . . . . 1 . 1 1 . . . 1 Fabricator Hacks 6 | . . . . . 1 1 . . . 2 2 Load Schematic 2 | . . . . . . . . . . 1 1 Build 4 | . . . . . 1 1 . . . 1 1 Repair Station Hacks 26 | . 2 . 2 7 . 4 4 4 . 2 1 Scan Component 15 | . 1 . 1 4 . 2 2 2 . 2 1 Repair 11 | . 1 . 1 3 . 2 2 2 . . . Recycling Unit Hacks 4 | . . . . . . . 3 1 . . . Process 1 | . . . . . . . 1 . . . . Report Inventory 2 | . . . . . . . 1 1 . . . Retrieve Matter 1 | . . . . . . . 1 . . . . Scanalyzer 27 | . . . 6 . 6 4 . 11 . . . Insert Component 13 | . . . 3 . 3 2 . 5 . . . Analyze 14 | . . . 3 . 3 2 . 6 . . . Garrison Access Hacks 3 | . . . 1 1 1 . . . . . . Seal Access 3 | . . . 1 1 1 . . . . . . Unauthorized Hacks 24 | . 2 . 6 4 6 1 2 2 . 1 . Terminals 18 | . 1 . 5 3 4 1 2 1 . 1 . Assimilate 3 | . 1 . . . 1 . . . . 1 . Botnet 12 | . . . 5 2 2 1 1 1 . . . Operators 3 | . . . . 1 1 . 1 . . . . Fabricators 1 | . . . . . 1 . . . . . . Fabnet 1 | . . . . . 1 . . . . . . Repair Stations . | . . . . . . . . . . . . Recycling Units 1 | . 1 . . . . . . . . . . Tunnel 1 | . 1 . . . . . . . . . . Scanalyzers . | . . . . . . . . . . . . Garrison Access 4 | . . . 1 1 1 . . 1 . . . Watchers 4 | . . . 1 1 1 . . 1 . . . Data Cores Recovered . | . . . . . . . . . . . . Used . | . . . . . . . . . . . . Hacking Detections 58 | . 3 2 11 9 9 2 3 8 1 6 4 Full Trace Events 8 | . 2 . 3 1 . . . . . 1 1 Feedback Events . | . . . . . . . . . . . . Feedback Blocked . | . . . . . . . . . . . . Robot Schematics Acquired 1 | . . . . . . . . . . 1 . Robots Built . | . . . . . . . . . . . . Authchips . | . . . . . . . . . . . . Time . | . . . . . . . . . . . . Total Robot Build Rating . | . . . . . . . . . . . . Part Schematics Acquired 23 | . 1 . 3 1 3 3 . 6 . 6 . Parts Built 4 | . . . . . 1 1 . . . 1 1 Authchips . | . . . . . . . . . . . . Time 205 | . . . . . 53 64 . . . 64 24 Total Part Build Rating 25 | . . . . . 6 8 . . . 8 3 Parts Repaired 11 | . 1 . 1 3 . 2 2 2 . . . Time 499 | . 13 . 53 140 . 108 108 77 . . . Parts Recycled . | . . . . . . . . . . . . Recycled Matter 18 | . . . . . . . 18 . . . . Retrieved Matter 18 | . . . . . . . 18 . . . . Retrieved Components . | . . . . . . . . . . . . Parts Scanalyzed 13 | . . . 3 . 3 2 . 5 . . . Part Schematics Acquired 13 | . . . 3 . 3 2 . 5 . . . Parts Damaged 2 | . . . 1 . . . . 1 . . . Bothacking | -11 -10 -9 -8 -8 -7 -6 -5 -4 -3 -3 -2 ------------ Run | Scr Mat Mat Mat Sto Fac Fac Fac Fac Res Tes Res Used RIF Installer . | . . . . . . . . . . . . Robots Hacked 10 | . . . . . . 3 . 7 . . . Non-combat 10 | . . . . . . 3 . 7 . . . Combat . | . . . . . . . . . . . . Robot Hacks Applied 13 | . . . . . . 4 . 9 . . . no_distress 8 | . . . . . . 1 . 7 . . . find_chute 2 | . . . . . . 1 . 1 . . . find_fabricator 2 | . . . . . . 1 . 1 . . . find_recycling 1 | . . . . . . 1 . . . . . Relay Couplers Released . | . . . . . . . . . . . . Fabnet Peak Effective % 3 | . . . . . . 3 1 . . . . Robots Rewired . | . . . . . . . . . . . . Allies Hacked . | . . . . . . . . . . . . Hacks Repelled . | . . . . . . . . . . . . Allies | -11 -10 -9 -8 -8 -7 -6 -5 -4 -3 -3 -2 -------- Run | Scr Mat Mat Mat Sto Fac Fac Fac Fac Res Tes Res Total Allies 26 | . . . . 12 13 . . . . 1 . Largest Group 10 | . . . . 10 8 . . . . 1 . Highest-Rated Group 173 | . . . . 173 146 . . . . 26 . Highest-Rated Ally 31 | . . . . 31 31 . . . . 26 . Total Orders 8 | . . . . 4 2 . . . . 2 . STAY 2 | . . . . . 1 . . . . 1 . FOLLOW 2 | . . . . . 1 . . . . 1 . EXPLORE 4 | . . . . 4 . . . . . . . Ally Attacks 205 | . . . . 190 15 . . . . . . Total Damage 2823 | . . . . 2530 293 . . . . . . Kills 35 | . . . . 32 3 . . . . . . Allies Corrupted . | . . . . . . . . . . . . Allies Melted . | . . . . . . . . . . . . Intel | -11 -10 -9 -8 -8 -7 -6 -5 -4 -3 -3 -2 ------- Run | Scr Mat Mat Mat Sto Fac Fac Fac Fac Res Tes Res Robot Analysis Total . | . . . . . . . . . . . . Derelict Logs Recovered . | . . . . . . . . . . . . Drone Launches 6 | . . . . 6 . . . . . . . Drone Recoveries 2 | . . . . 2 . . . . . . . Exploration | -11 -10 -9 -8 -8 -7 -6 -5 -4 -3 -3 -2 ------------- Run | Scr Mat Mat Mat Sto Fac Fac Fac Fac Res Tes Res Turns Passed 10794 | 134 878 740 2797 1380 1288 849 257 666 231 833 741 Spaces Moved 10725 | 101 484 363 1375 740 2202 950 478 1133 444 1069 1386 Core 42 | 2 . . . . . . . . . . 40 Treads 59 | 17 . 2 40 . . . . . . . . Legs . | . . . . . . . . . . . . Wheels 3002 | 82 484 361 1335 740 . . . . . . . Hover . | . . . . . . . . . . . . Flight 7622 | . . . . . 2202 950 478 1133 444 1069 1346 Fastest Speed 26 | 50 100 145 145 115 26 26 32 31 32 33 31 Average Speed 66 | 109 142 145 158 140 27 38 33 34 34 38 34 Slowest Speed 400 | 160 145 320 400 145 98 109 35 109 108 119 162 Overloaded Moves 8 | . . . . . . . . . . . 8 Propulsion Burnouts . | . . . . . . . . . . . . Robots Hopped 26 | . . . . . 7 1 2 1 . 9 6 Cave-ins Triggered . | . . . . . . . . . . . . Exploration Rate (%) 41 | 6 70 34 79 94 37 21 11 27 10 58 45 Regions Visited 11 Branch Regions 2 Pre-discovered Areas 1 | . 1 . . . . . . . . . . Known Exits Taken 6 | . . . . . 1 1 1 1 1 1 . Unknown Exits Taken 5 | 1 1 1 1 1 . . . . . . . Scrap Searched . | . . . . . . . . . . . . Spaces Dug 179 | . . . 8 11 47 13 2 23 5 41 29 Terrain Destroyed 348 | . . . 26 58 64 13 2 23 5 108 49 Melee 149 | . . . 8 11 41 13 2 23 5 17 29 Projectile . | . . . . . . . . . . . . AOE 199 | . . . 18 47 23 . . . . 91 20 Terrain Rammed . | . . . . . . . . . . . . Walls Destroyed . | . . . . . . . . . . . . Machines Disabled . | . . . . . . . . . . . . Actions | -11 -10 -9 -8 -8 -7 -6 -5 -4 -3 -3 -2 --------- Run | Scr Mat Mat Mat Sto Fac Fac Fac Fac Res Tes Res Total 13450 | 115 609 480 1735 1006 2782 1400 569 1328 490 1366 1570 Wait 1619 | . 31 51 132 172 469 317 84 99 15 149 100 Move 10662 | 100 483 362 1374 739 2187 947 473 1130 443 1050 1374 Hop 26 | . . . . . 7 1 2 1 . 9 6 Pick Up 126 | 5 31 5 25 12 10 3 4 8 4 12 7 Fast Attach 39 | 7 2 1 2 1 1 6 . 7 2 4 6 Attach 49 | . 1 2 11 4 7 1 3 4 1 4 11 Detach 11 | . . . 1 1 . . . 1 1 1 6 Swap 139 | . 5 6 30 12 22 15 1 10 8 25 5 Drop 108 | . 20 6 25 10 9 4 . 8 . 16 10 Fire 176 | 3 36 47 61 11 4 . . . . 11 3 Melee 369 | . . . 73 35 52 19 2 60 16 70 42 Ram 1 | . . . 1 . . . . . . . . Kick . | . . . . . . . . . . . . Crush . | . . . . . . . . . . . . Escape Stasis 33 | . . . . 8 . 18 . . . 7 . Rewire . | . . . . . . . . . . . . Trap 91 | . . . . . 14 69 . . . 8 . Miscellaneous 1 | . . . . 1 . . . . . . . Route ------- -11/Scrapyard -10/Materials (discovered 3 exits: *Mat / *Min x2) -9/Materials -8/Materials (discovered 4 exits: *Fac x3 / *Sto) -8/Storage (discovered 2 exits: *Fac / Rec) -7/Factory (discovered 2 exits: *Fac x2) -6/Factory -5/Factory -4/Factory (discovered 2 exits: *Res / *Ext) -3/Research -3/Testing -2/Research (discovered 1 exit: [*Acc]) History --------- Turn | Location | Event 49 | -11/Scrapyard | Discovered new exit (range 14) 135 | -11/Scrapyard | Entered Materials 312 | -10/Materials | Build established: Mutant 465 | -10/Materials | Discovered new exit (range 16) 602 | -10/Materials | Repaired Seismic Detector 637 | -10/Materials | Identified exit to Mines 725 | -10/Materials | Central database locked down 1007 | -10/Materials | Discovered new exit (range 3) 1013 | -10/Materials | Entered another Materials area 1013 | -9/Materials | Evolved 2 slots: Utility x2 1739 | -9/Materials | Discovered new exit (range 11) 1753 | -9/Materials | Entered another Materials area 1753 | -8/Materials | Evolved 2 slots: Utility x2 1930 | -8/Materials | Lost 3 parts (1n1u1w) 2095 | -8/Materials | Build established: Scavenger-Mutant 2236 | -8/Materials | Discovered new exit (range 5) 2237 | -8/Materials | Discovered new exit (range 13) 2809 | -8/Materials | Discovered new exit (range 14) 3079 | -8/Materials | Build established: Mutant 3315 | -8/Materials | Repaired Broken Imp. Sensor Array 3561 | -8/Materials | Discovered new exit (range 13) 4550 | -8/Materials | Entered Storage 4619 | -8/Storage | Met a pair of Derelict thieves 4711 | -8/Storage | Destroyed 10 combat bots 4749 | -8/Storage | Identified exit to Recycling 4807 | -8/Storage | Assisted by bots powering up and referring to "LRC-V3" 4808 | -8/Storage | Central database locked down 4888 | -8/Storage | Garrison activated, responded to threat 4992 | -8/Storage | Discovered new exit (range 16) 5295 | -8/Storage | Repaired Cesium-ion Thruster? 5318 | -8/Storage | Build established: Hacker-Mutant 5443 | -8/Storage | Repaired Mni. Grenade Launcher 5718 | -8/Storage | Repaired Cld. VTOL Module? 5750 | -8/Storage | First assault squad dispatched 5930 | -8/Storage | Entered Factory 5930 | -7/Factory | Evolved 2 slots: Propulsion x2 6000 | -7/Factory | Fabricated Adv. System Shield? 6463 | -7/Factory | Build established: Scavenger-Scout 6565 | -7/Factory | Discovered new exit (range 6) 6615 | -7/Factory | Lost 4 parts (1p3u) 7130 | -7/Factory | Search patrols dispatched 7216 | -7/Factory | Discovered new exit (range 6) 7218 | -7/Factory | Identified exit to Factory 7218 | -7/Factory | Entered another Factory area 7218 | -6/Factory | Evolved 2 slots: Power x1, Utility x1 7763 | -6/Factory | Fabricated Impulse Thruster Array (x1) 7881 | -6/Factory | Repaired Cld. VTOL Module 7923 | -6/Factory | Repaired Katana? 8027 | -6/Factory | Discovered new exit (range 18) 8044 | -6/Factory | Identified exit to Factory 8067 | -6/Factory | Entered another Factory area 8067 | -5/Factory | Evolved 2 slots: Utility x2 8089 | -5/Factory | Discovered new exit (range 7) 8105 | -5/Factory | Identified exit to Factory 8187 | -5/Factory | Repaired Imp. Sensor Array 8258 | -5/Factory | Repaired Cld. VTOL Module 8324 | -5/Factory | Entered another Factory area 8324 | -4/Factory | Evolved 2 slots: Propulsion x1, Utility x1 8368 | -4/Factory | Build established: Hacker-Ninja 8587 | -4/Factory | Discovered new exit (range 17) 8592 | -4/Factory | Identified exit to Extension 8730 | -4/Factory | Lost 3 parts (2n1u) 8921 | -4/Factory | Repaired Broken Impulse Thruster 8957 | -4/Factory | Repaired Impulse Thruster Array 8965 | -4/Factory | Spotted B-86 Titan 8986 | -4/Factory | Discovered new exit (range 5) 8987 | -4/Factory | Identified exit to Research 8990 | -4/Factory | Entered Research 8990 | -3/Research | Evolved 2 slots: Propulsion x1, Utility x1 9059 | -3/Research | Discovered new exit (range 17) 9085 | -3/Research | Spotted B-86 Titan 9210 | -3/Research | Identified exit to Testing 9221 | -3/Research | Entered Testing 9385 | -3/Testing | Fabricated Impulse Thruster Array (x1) 9568 | -3/Testing | Found Fusion Bomb Launcher 9657 | -3/Testing | Found Prototype Reactor 9658 | -3/Testing | Identified Zero-point Reactor 9740 | -3/Testing | Scanned by Researcher 9753 | -3/Testing | Found Prototype Device 9754 | -3/Testing | Identified Exp. Hardlight Generator 9827 | -3/Testing | Found Prototype Device 9828 | -3/Testing | Identified Exp. Focal Shield 9931 | -3/Testing | Spotted Striker 9948 | -3/Testing | Spotted Striker 10050 | -3/Testing | Discovered new exit (range 13) 10053 | -3/Testing | Identified exit to Research 10054 | -3/Testing | Lost 3 parts (1p2u) 10054 | -3/Testing | Entered Research 10054 | -2/Research | Evolved 2 slots: Utility x2 10148 | -2/Research | Fabricated Imp. Sensor Array (x1) 10365 | -2/Research | Lost 3 parts (1p1n1u) 10416 | -2/Research | Found Prototype Protection 10553 | -2/Research | Spotted B-90 Cyclops 10592 | -2/Research | Spotted B-90 Cyclops 10669 | -2/Research | Spotted B-90 Cyclops 10735 | -2/Research | Found Prototype Device 10735 | -2/Research | Identified Exp. Thermal Shield 10755 | -2/Research | Lost 8 parts (1p3n2u2w) 10773 | -2/Research | Core integrity fell below 50% 10784 | -2/Research | Spotted B-90 Cyclops 10788 | -2/Research | Discovered new exit (range 10) 10792 | -2/Research | Core integrity fell below 20% 10795 | -2/Research | Destroyed by P-80 Master with Gamma Rifle Last Messages --------------- 10776_ Slug penetrates Wall. 10783_ W-44 Eye sends out distress signal. 10786_ Force Lance destroyed. 10786_ Triggered Alarm Trap. 10786_ An alarm sounds. 10786_ ALERT: Alarm triggered, dispatching investigation squad. 10786_ Slug penetrates Wall. 10788_ EXIT=FOUND 10789_ Slug penetrates Wall. 10789_ Penetrated by Slug. 10789_ Slug penetrates Wall. 10790_ Adv. Weight Redist. System destroyed. 10790_ Slug penetrates Wall. 10791_ Visual Processing Unit destroyed. 10792_ Adv. Signal Interpreter destroyed. 10792_ Penetrated by Slug. 10792_ Adv. System Shield destroyed. 10792_ Penetrated by Slug. 10792_ Slug penetrates Wall. 10794_ Wall collapses. Map ----- +----------------------------------------------------+ | ?????????????????????????????????????????????????? | | ?????????????????????????????????????????????????? | | ?????????????????????????????????????????????????? | | ?????????????????????????????????????????????????? | | ?????????????????????????????????????????????????? | | ?????????????????????????????????????????????????? | | ?????????????????????????????????????????????????? | | ?????????????????????????????????????????????????? | | ?????????????????????????????????????????????????? | | ?????????????????????????????????????????????????? | | ?????????????????????????????????????????????????? | | ?????????????????????????????????????????????????? | | ?????????????????????????????????????????????????? | | ?????????????????????????????????????????????????? | | ?????????????????????????????????????????????????? | | ?????????????????????????????????????????????????? | | ?????????????????????????????????????????????????? | | ?????????????????????????????????????????????????? | | ?????????????????????????????????????????????????? | | ?????????????????????????????????????????????????? | | ??????????? ????????????????????###?????????????? | | ??????????? ????????######???? ?????????????? | | ??????????# ??????# #???? ?????????????? | | ??????????# =????# #???? ?????????????? | | ??????????# ??# < #???? ?????????????? | | ????????????? # @ +???? ?????????????? | | ???????????????" """ + hhp#???? ?????????????? | | ???????????????" """ # #???? ?????????????? | | ???????????????? """??# #???? ?????????????? | | ???????????????? ????# #???? ?????????????? | | ??????????????? ??????#ss #????#+#?????????????? | | ????????????????######## s #????# #?????????????? | | ????????????????# p s #????# #?????????????? | | ????????????????# #????# #?????????????? | | ????????????????# #????# #?????????????? | | ????????????????# #????# #?????????????? | | ????????????????# #####;####### ##????????????? | | ????????????????# # ##" "#????????????? | | ????????????????# # h " # ##????????????? | | ????????????????# + """" ### #?????????????? | | ????????????????# # ""S"" ### #?????????????? | | ????????????????# # "" "" ##"/############### | | ????????????????# # ### = !# | | ????????????????# # ##" # | | ????????????????# # = ### # """ | | ????????????????# ###########?# # """ | | ???????????????? #???????????# !! = " """ | | ??????????????? #???????????# ! # """ | | ?????????????? ????????????# # | | ?????????????? !! ????????????# ! # | +----------------------------------------------------+ Best States ------------- Heat Dissipation 84 Coolant Potential 120 Energy Generation 57 Energy Capacity 990 Matter Stores 300 Matter Capacity 300 Sight Range 20 Robot Scan Range 18 Terrain Scan Range 20 Terrain Scan Density 10 ECM Strength 1 Jamming Range 16 Cloak Strength 3 Additional Mass Support 9 Base Temperature (-) 200 Corruption Block 15 Armor Coverage 225 Resistance: KI 30 Phase Shifting 5 Evasion (%) 68 Recoil Reduction 2 Offensive Hacking 20 Defensive Hacking 14 Trap Extractor Capacity 8 Item Schematics ----------------- Med. Storage Unit | -10/Materials | Hacked Imp. Sensor Array | -8/Materials | Scanalyzed Melee Analysis Suite | -8/Materials | Scanalyzed Cesium-ion Thruster | -8/Materials | Scanalyzed Imp. Signal Interpreter | -8/Storage | Hacked Imp. Trap Extractor | -7/Factory | Scanalyzed Adv. Weight Redist. System | -7/Factory | Scanalyzed Mni. Grenade Launcher | -7/Factory | Scanalyzed Trap Scanner | -6/Factory | Scanalyzed ECM Suite | -6/Factory | Scanalyzed Structural Scanner | -6/Factory | Hacked Impulse Thruster Array | -4/Factory | Hacked Impulse Thruster | -4/Factory | Scanalyzed Adv. Trap Extractor | -4/Factory | Scanalyzed Phase Shifter | -4/Factory | Scanalyzed Force Lance | -4/Factory | Scanalyzed Cloaking Device | -4/Factory | Scanalyzed Centrium Greatsword | -3/Testing | Archive Imp. Matter Compressor | -3/Testing | Archive Prc. Matter Filter | -3/Testing | Archive Hvy. Antimatter Reactor | -3/Testing | Archive Enh. Coil Gun | -3/Testing | Archive Exp. Matter Compressor | -3/Testing | Archive Robot Schematics ------------------ M-30 Cleanser | -3/Testing | Archive Fabricated ------------ Adv. System Shield | x1 | -7/Factory | Preloaded Impulse Thruster Array | x1 | -6/Factory | Preloaded Impulse Thruster Array | x1 | -3/Testing Imp. Sensor Array | x1 | -2/Research Alien Tech Used ----------------- None Achievements -------------- GoHome() Hehehe Power Corrupts Challenges ------------ None Game ------ Seed VortexVortexRail Manual? 0 Play Time 04:35:40 Cumulative 17.7 hours Start 2022.04.30 @ 19:23:24 End 2022.05.02 @ 07:56:20 Sessions 9 Manual Loads 0 Difficulty Rogue Special Mode None Game No. 5 Rogue 5 Adventurer 0 Explorer 0 Win Type - Total 0 Types 0/0/0/0/0/0/0/0/0 Lore% 3 Gallery% 20 Achievement% 20 Wizard Run 0 Options --------- ASCII 0 Keyboard 0 Movement Numpad Keybinds 0 Fullscreen 1 Font 18/SmallcapsGlow Map View 76x50 Tactical HUD 1 Map Filters NONE Filters NONE Steam 1 RUN: 9b3b32e5-34d3-4f6f-9668-0011c5c9ce91